bitfinex/quotes_BTCUSD_20250114
["timestamp","ask_amount","ask_price","bid_price","bid_amount"]
[1736886926468,0.50232092,96649.0,96619.0,0.206997]
[1736886926892,0.49032092,96649.0,96619.0,0.206997]
[1736886927089,0.48416092,96649.0,96635.0,0.0775]
[1736886927328,0.49332092,96649.0,96635.0,0.0775]
[1736886927845,0.47032092,96649.0,96635.0,0.0775]
[1736886928250,0.47932092,96649.0,96635.0,0.0775]
[1736886928447,0.31416092,96649.0,96635.0,0.0775]
[1736886928811,0.31416092,96649.0,96636.0,0.0464]
[1736886928812,0.32932092,96649.0,96636.0,0.0464]
[1736886929212,0.012,96649.0,96636.0,0.253361]
[1736886929641,0.003,96649.0,96640.0,0.2215808]
[1736886929835,0.00616,96655.0,96640.0,0.2215808]
[1736886930039,0.008,96649.0,96640.0,0.2215808]
[1736886930418,0.008,96649.0,96648.0,0.0831535]
[1736886930617,0.006,96649.0,96648.0,0.2900895]
[1736886930840,0.006,96649.0,96648.0,0.31909925]
[1736886931201,0.09229124,96687.0,96648.0,0.31909925]
[1736886931202,0.206863,96682.0,96665.0,0.206898]
[1736886931404,0.10422692,96681.0,96666.0,0.0796]
[1736886931605,0.11178387,96681.0,96666.0,0.286496]
[1736886931817,0.00755695,96681.0,96670.0,0.206888]
[1736886932223,0.00014791,96687.0,96667.0,0.0493401]
[1736886932424,0.00014791,96687.0,96668.0,0.206893]
[1736886932668,0.00014791,96687.0,96675.0,0.206878]
[1736886932891,0.00014791,96687.0,96674.0,0.206878]
[1736886933073,0.00014791,96687.0,96675.0,0.0620662]
[1736886933074,0.001,96681.0,96675.0,0.0620662]
[1736886933280,0.001,96681.0,96674.0,0.206878]
[1736886933281,0.001,96681.0,96676.0,0.0452]
[1736886934402,0.00014791,96687.0,96677.0,0.206874]
[1736886935218,0.00014791,96687.0,96676.0,0.0492]
[1736886935989,0.00014791,96687.0,96677.0,0.002]
[1736886936213,0.00014791,96687.0,96678.0,0.206872]
[1736886937769,0.00014791,96687.0,96676.0,0.0472]
[1736886938013,0.00014791,96687.0,96678.0,0.002]
[1736886938397,0.00014791,96687.0,96678.0,0.21087]
[1736886938711,0.00014791,96687.0,96678.0,0.20887]
[1736886939217,0.00014791,96687.0,96676.0,0.0452]
[1736886939397,0.00014791,96687.0,96676.0,0.0472]
[1736886939815,0.00014791,96687.0,96676.0,0.0452]
[1736886940195,0.31108292,96686.0,96678.0,0.002]
[1736886940402,0.31806289,96686.0,96678.0,0.002]
[1736886940600,0.31806289,96686.0,96678.0,0.004]
[1736886940800,0.31806289,96686.0,96674.0,0.0008537]
[1736886941853,0.32106289,96686.0,96674.0,0.0008537]
[1736886942581,0.31806289,96686.0,96674.0,0.0008537]
[1736886943199,0.53838216,96686.0,96674.0,0.0008537]
[1736886944048,0.32006289,96686.0,96674.0,0.0008537]
[1736886944250,0.206863,96683.0,96674.0,0.0008537]
[1736886944597,0.00697614,96682.0,96674.0,0.0008537]
[1736886945203,0.31308292,96686.0,96674.0,0.0008537]
[1736886945398,0.00697575,96681.0,96674.0,0.0008537]
[1736886945599,0.206864,96682.0,96674.0,0.0008537]
[1736886945921,0.20687,96679.0,96674.0,0.0008537]
[1736886946128,0.00697496,96681.0,96674.0,0.0008537]
[1736886946475,0.206864,96682.0,96674.0,0.0018537]
[1736886946667,0.00697419,96680.0,96674.0,0.0018537]
[1736886946823,0.00697457,96681.0,96674.0,0.0018537]
[1736886947042,0.206844,96691.0,96674.0,0.0018537]
[1736886947043,0.0069738,96679.0,96675.0,0.206878]
[1736886947242,0.00014791,96687.0,96674.0,0.0008537]
[1736886947577,0.00014791,96687.0,96684.0,0.206858]
[1736886947973,0.00014791,96687.0,96681.0,0.206865]
[1736886948399,0.002,96681.0,96680.0,0.206868]
[1736886949021,0.002,96681.0,96680.0,0.22754537]
[1736886949595,0.00014791,96687.0,96680.0,0.22754537]
[1736886949790,0.00014791,96687.0,96680.0,0.206868]
[1736886950191,0.00014791,96687.0,96680.0,0.002]
[1736886950584,0.00694929,96686.0,96680.0,0.002]
[1736886950782,0.00694929,96686.0,96674.0,0.2077327]
[1736886951389,0.00694929,96686.0,96680.0,0.001]
[1736886951589,0.00114791,96687.0,96680.0,0.001]
[1736886951821,0.00014791,96687.0,96680.0,0.001]
[1736886952308,0.00014791,96687.0,96681.0,0.24842547]
[1736886952516,0.00014791,96687.0,96680.0,0.001]
[1736886953007,0.00694929,96686.0,96675.0,0.206876]
[1736886954169,0.00694929,96686.0,96674.0,0.0008537]
[1736886954170,0.206869,96680.0,96674.0,0.0008537]
[1736886954307,0.33030848,96684.0,96675.0,0.001]
[1736886954528,0.00696385,96683.0,96675.0,0.001]
[1736886954955,0.206859,96684.0,96675.0,0.001]
[1736886955274,0.206865,96681.0,96675.0,0.001]
[1736886955613,0.00695844,96680.0,96674.0,0.0008537]
[1736886956840,0.00695844,96680.0,96674.0,0.0018537]
[1736886957439,0.00695844,96680.0,96674.0,0.0008537]
[1736886957646,0.00695844,96680.0,96678.0,0.20687]
[1736886957868,0.001,96681.0,96678.0,0.413741]
[1736886958083,0.00616,96695.0,96675.0,0.206878]
[1736886958216,0.00616,96695.0,96682.0,0.206862]
[1736886958637,0.00616,96699.0,96686.0,0.281855]
[1736886959522,0.00114791,96687.0,96686.0,0.281855]
[1736886960146,0.00114791,96687.0,96686.0,0.282855]
[1736886960343,0.00114791,96687.0,96686.0,0.3572035]
[1736886960550,0.00114791,96687.0,96686.0,0.076]
[1736886960758,0.00014791,96687.0,96674.0,0.0008537]
[1736886960968,0.023,96683.0,96674.0,0.0008537]
[1736886961166,0.206878,96676.0,96674.0,0.0008537]
[1736886961373,0.13467998,96675.0,96674.0,0.0008537]
[1736886961577,0.36825843,96675.0,96674.0,0.0008537]
[1736886961777,0.36696537,96675.0,96674.0,0.0008537]
[1736886962385,0.36696537,96675.0,96674.0,0.0028537]
[1736886962593,0.11736537,96675.0,96674.0,0.0028537]
[1736886962800,0.12763647,96675.0,96674.0,0.0028537]
[1736886963487,0.12963647,96675.0,96674.0,0.0028537]
[1736886963912,0.15392959,96675.0,96674.0,0.0008537]
[1736886964112,0.15192959,96675.0,96674.0,0.0008537]
[1736886964377,0.15592959,96675.0,96674.0,0.0008537]
[1736886964600,0.15192959,96675.0,96674.0,0.0008537]
[1736886964787,0.15592959,96675.0,96674.0,0.0008537]
[1736886965065,0.15692959,96675.0,96674.0,0.0008537]
[1736886965293,0.38068442,96675.0,96674.0,0.0008537]
[1736886965523,0.43319123,96675.0,96674.0,0.0008537]
[1736886965757,0.60979123,96675.0,96674.0,0.0008537]
[1736886965985,0.60979123,96675.0,96674.0,7e-07]
[1736886966183,0.60879123,96675.0,96674.0,7e-07]
[1736886966690,0.379934,96649.0,96648.0,0.0008535]
[1736886966941,0.49744833,96649.0,96648.0,0.0008535]
[1736886967833,0.50244833,96649.0,96648.0,0.0008535]
[1736886968305,0.49844833,96649.0,96648.0,0.0008535]
[1736886968584,0.50744833,96649.0,96648.0,0.0008535]
[1736886968808,0.49844833,96649.0,96648.0,0.0008535]
[1736886969765,0.49744833,96649.0,96648.0,0.0008535]
[1736886970168,0.50944833,96649.0,96648.0,0.0008535]
[1736886970392,0.50044833,96649.0,96648.0,0.0008535]
[1736886970801,0.49744833,96649.0,96648.0,0.0008535]
[1736886971007,0.50944833,96649.0,96648.0,0.0008535]
[1736886972106,0.36981355,96649.0,96648.0,0.0008535]
[1736886972813,0.12951433,96649.0,96648.0,0.0008535]
[1736886973024,0.01612741,96649.0,96648.0,0.0008535]
[1736886973196,0.00712741,96649.0,96648.0,0.0008535]
[1736886973447,0.002,96649.0,96648.0,0.0008535]
[1736886973650,0.01599069,96649.0,96648.0,0.0008535]
[1736886973858,0.00899069,96649.0,96648.0,0.22856955]
[1736886974027,0.002,96649.0,96648.0,0.02163355]
[1736886974413,0.206912,96660.0,96648.0,0.02163355]
[1736886974622,0.206912,96660.0,96648.0,0.0018535]
[1736886974822,0.00699931,96659.0,96648.0,0.0018535]
[1736886975345,0.003,96649.0,96648.0,0.0018535]
[1736886975910,0.003,96649.0,96648.0,0.18618042]
[1736886976122,0.003,96649.0,96648.0,0.43618042]
[1736886976332,0.003,96649.0,96648.0,0.68700734]
[1736886976532,0.00616,96676.0,96653.0,0.15]
[1736886976983,0.00709597,96675.0,96661.0,0.206907]
[1736886977966,0.00709597,96675.0,96656.0,0.413838]
[1736886978235,0.001,96675.0,96672.0,0.206883]
[1736886978545,0.001,96675.0,96669.0,0.206891]
[1736886979745,0.12960948,96690.0,96673.0,0.206882]
[1736886979916,0.206853,96687.0,96669.0,0.206891]
[1736886980115,0.001,96675.0,96669.0,0.206891]
[1736886980530,0.002,96675.0,96669.0,0.206891]
[1736886980957,0.31107992,96687.0,96669.0,0.206891]
[1736886981128,0.31707992,96687.0,96669.0,0.206891]
[1736886981337,0.00711584,96686.0,96669.0,0.206891]
[1736886981740,0.00711584,96686.0,96669.0,0.207891]
[1736886982649,0.00711584,96686.0,96669.0,0.001]
[1736886982815,0.00711584,96686.0,96679.0,0.20687]
[1736886983020,0.00189987,96689.0,96676.0,0.206875]
[1736886983181,0.00711546,96685.0,96680.0,0.206867]
[1736886983382,0.002,96687.0,96680.0,0.206867]
[1736886983595,0.00711623,96686.0,96684.0,0.206858]
[1736886983794,0.00189987,96689.0,96684.0,0.206858]
[1736886983998,0.001,96686.0,96685.0,0.206857]
[1736886984422,0.00189987,96689.0,96686.0,0.206854]
[1736886984587,0.001,96687.0,96686.0,0.206854]
[1736886986758,0.0008755,96687.0,96686.0,0.27302785]
[1736886987171,0.00189987,96689.0,96686.0,0.27502785]
[1736886987407,0.00189987,96689.0,96688.0,0.30685]
[1736886987613,0.00189987,96689.0,96688.0,0.49117692]
[1736886988610,0.00289987,96689.0,96688.0,0.49417692]
[1736886988824,0.00289987,96689.0,96688.0,0.53222999]
[1736886989027,0.09209903,96722.0,96700.0,0.1]
[1736886989229,0.09209903,96722.0,96721.0,0.28688]
[1736886989230,0.0925949,96722.0,96721.0,0.28688]
[1736886989427,0.00049587,96722.0,96721.0,0.28688]
[1736886991332,0.00249587,96722.0,96721.0,0.28688]
[1736886991548,0.00249587,96722.0,96721.0,0.32803949]
[1736886991768,0.00049587,96722.0,96721.0,0.32803949]
[1736886992048,0.00049587,96722.0,96721.0,0.33103949]
[1736886992539,0.00049587,96722.0,96721.0,0.32803949]
[1736886992954,0.00049587,96722.0,96721.0,0.33003949]
[1736886993271,0.00049587,96722.0,96721.0,0.28888]
[1736886993467,0.00049587,96722.0,96715.0,0.413583]
[1736886993695,0.00049587,96722.0,96721.0,0.006]
[1736886993913,0.00049587,96722.0,96721.0,0.003]
[1736886994264,0.00049587,96722.0,96721.0,0.004]
[1736886994610,0.00049587,96722.0,96720.0,0.20678]
[1736886994805,0.00049587,96722.0,96721.0,0.002]
[1736886995758,0.00708758,96722.0,96721.0,0.002]
[1736886996054,0.00708796,96722.0,96721.0,0.002]
[1736886996304,0.00708796,96722.0,96721.0,0.004]
[1736886996724,0.00708796,96722.0,96721.0,0.002]
[1736886996860,0.00049587,96722.0,96721.0,0.20878]
[1736886997067,0.00228864,96722.0,96721.0,0.20878]
[1736886997470,0.00228864,96722.0,96721.0,0.20678]
[1736886997806,0.00428864,96722.0,96721.0,0.20778]
[1736886998369,0.00228864,96722.0,96721.0,0.20778]
[1736886998563,0.00228864,96722.0,96721.0,0.001]
[1736886998967,0.00228864,96722.0,96721.0,0.20778]
[1736886999165,0.00228864,96722.0,96721.0,0.20678]
[1736886999371,0.00228864,96722.0,96721.0,0.20878]
[1736887000022,0.00228864,96722.0,96721.0,0.20778]
[1736887000208,0.00228864,96722.0,96721.0,0.20878]
[1736887000660,0.00228864,96722.0,96721.0,0.28888]
[1736887001573,0.50838864,96722.0,96721.0,0.28888]
[1736887001883,0.51496569,96722.0,96721.0,0.28888]
[1736887003125,0.51496569,96722.0,96721.0,0.39310692]
[1736887003333,0.51496569,96722.0,96721.0,0.49210692]
[1736887003537,0.51496569,96722.0,96721.0,0.57499631]
[1736887003823,0.51496569,96722.0,96721.0,0.59530971]
[1736887004411,0.51496569,96722.0,96721.0,0.59430971]
[1736887004539,0.51496569,96722.0,96721.0,0.28988]
[1736887004741,0.51596569,96722.0,96721.0,0.29488]
[1736887005778,0.49528769,96722.0,96721.0,0.69570692]
[1736887005981,0.07886645,96722.0,96721.0,0.79570692]
[1736887006090,0.07308071,96722.0,96721.0,0.81870692]
[1736887006310,0.00179382,96738.0,96737.0,0.206746]
[1736887006537,0.00187586,96738.0,96737.0,0.31097292]
[1736887006760,0.00187586,96738.0,96737.0,0.41097292]
[1736887006964,0.00187586,96738.0,96737.0,0.31097292]
[1736887007191,0.00187586,96738.0,96737.0,0.41097292]
[1736887007400,0.00187586,96738.0,96737.0,0.206746]
[1736887008030,0.00287586,96738.0,96737.0,0.215746]
[1736887008231,0.00187586,96738.0,96737.0,0.206746]
[1736887008724,0.00287586,96738.0,96737.0,0.219746]
[1736887009182,0.00287586,96738.0,96737.0,0.214746]
[1736887009586,0.00287586,96738.0,96737.0,0.218746]
[1736887009994,0.00287586,96738.0,96737.0,0.008]
[1736887010196,0.00287586,96738.0,96737.0,0.001]
[1736887010396,0.29429143,96738.0,96737.0,0.001]
[1736887010571,0.42794749,96738.0,96737.0,0.002]
[1736887010959,0.42794749,96738.0,96737.0,0.001]
[1736887011509,0.206756,96733.0,96719.0,0.206782]
[1736887011707,0.31098292,96733.0,96719.0,0.206782]
[1736887011941,0.00597168,96732.0,96719.0,0.413566]
[1736887012143,0.206758,96731.0,96719.0,0.206782]
[1736887012343,0.206758,96731.0,96702.0,0.02058941]
[1736887012344,0.206763,96729.0,96707.0,0.206809]
[1736887012543,0.206767,96727.0,96719.0,0.001]
[1736887012772,0.10422692,96726.0,96719.0,0.001]
[1736887012950,0.206771,96725.0,96719.0,0.001]
[1736887013146,0.10422692,96724.0,96719.0,0.001]
[1736887013365,0.11032411,96724.0,96713.0,0.206795]
[1736887013881,0.206786,96719.0,96708.0,0.206807]
[1736887014083,0.10422692,96718.0,96708.0,0.206807]
[1736887014306,0.11032185,96718.0,96708.0,0.206807]
[1736887014452,0.11032185,96718.0,96704.0,0.206816]
[1736887014656,0.206788,96717.0,96704.0,0.206816]
[1736887015107,0.206788,96717.0,96700.0,0.206823]
[1736887015108,0.286493,96715.0,96700.0,0.206823]
[1736887015266,0.10551941,96714.0,96707.0,0.001]
[1736887015460,0.206806,96709.0,96707.0,0.001]
[1736887015695,0.31103292,96709.0,96695.0,0.206833]
[1736887015888,0.00609292,96708.0,96699.0,0.206827]
[1736887016134,0.00609292,96708.0,96704.0,0.001]
[1736887016467,0.0797,96715.0,96703.0,0.206817]
[1736887016665,0.10422692,96714.0,96708.0,0.001]
[1736887016869,0.11032104,96714.0,96703.0,0.206817]
[1736887017080,0.11032104,96714.0,96703.0,0.00049587]
[1736887017309,0.001,96708.0,96704.0,0.005]
[1736887017818,0.00605258,96707.0,96703.0,0.00049587]
[1736887018366,0.206797,96713.0,96703.0,0.00049587]
[1736887018574,0.206797,96713.0,96704.0,0.005]
[1736887018575,0.206814,96705.0,96704.0,0.005]
[1736887018776,0.31104092,96705.0,96704.0,0.005]
[1736887018966,0.31708198,96705.0,96704.0,0.005]
[1736887019700,0.46888198,96705.0,96704.0,0.005]
[1736887019874,0.46888198,96705.0,96703.0,0.00049587]
[1736887019875,0.023,96704.0,96703.0,0.00049587]
[1736887020078,0.12851973,96704.0,96703.0,0.00049587]
[1736887020289,0.13450499,96704.0,96703.0,0.00049587]
[1736887020922,0.13450499,96704.0,96703.0,0.00134927]
[1736887021125,0.29503098,96704.0,96703.0,0.00134927]
[1736887021332,0.39796509,96704.0,96703.0,0.00134927]
[1736887021545,0.58666509,96704.0,96703.0,0.00234927]
[1736887022484,0.58966509,96704.0,96703.0,0.00234927]
[1736887022888,0.479846,96690.0,96689.0,0.0008537]
[1736887023093,0.76377292,96690.0,96689.0,0.0008537]
[1736887023302,0.87408279,96690.0,96689.0,0.0008537]
[1736887023929,0.87808279,96690.0,96689.0,0.0008537]
[1736887024564,0.97034275,96690.0,96689.0,0.0008537]
[1736887024766,0.76711583,96690.0,96689.0,0.0018537]
[1736887024972,0.29742519,96690.0,96689.0,0.0018537]
[1736887025179,0.30358519,96690.0,96689.0,0.0008537]
[1736887025382,0.29858519,96690.0,96689.0,0.0008537]
[1736887025583,0.23432523,96690.0,96689.0,0.0018537]
[1736887025831,0.15462523,96690.0,96689.0,0.0018537]
[1736887026007,0.15591824,96690.0,96689.0,0.0008537]
[1736887026215,0.15091824,96690.0,96689.0,0.0008537]
[1736887026391,0.16091824,96690.0,96689.0,0.0008537]
[1736887026590,0.15191824,96690.0,96689.0,0.0008537]
[1736887026813,0.00708295,96690.0,96689.0,0.0008537]
[1736887027022,0.006,96690.0,96689.0,0.0008537]
[1736887027643,0.00129271,96701.0,96689.0,0.0008537]
[1736887027850,0.10422692,96700.0,96689.0,0.0008537]
[1736887028038,0.006,96690.0,96689.0,0.2077017]
[1736887028452,0.005,96690.0,96689.0,0.2077017]
[1736887029390,0.10422692,96700.0,96689.0,0.4145497]
[1736887029712,6.665e-05,96702.0,96689.0,0.0048537]
[1736887029913,0.001,96690.0,96689.0,0.2117017]
[1736887030133,6.665e-05,96702.0,96698.0,0.206829]
[1736887030490,6.665e-05,96702.0,96698.0,0.413658]
[1736887032134,6.665e-05,96702.0,96698.0,0.415658]
[1736887032496,6.665e-05,96702.0,96698.0,0.413658]
[1736887033585,0.00106665,96702.0,96698.0,0.416658]
[1736887033990,6.5e-07,96702.0,96701.0,0.35]
[1736887034249,6.5e-07,96702.0,96701.0,0.45422692]
[1736887034669,2.2e-07,96704.0,96703.0,0.35]
[1736887034874,2.2e-07,96704.0,96703.0,0.50342692]
[1736887037123,2.2e-07,96704.0,96703.0,0.50842692]
[1736887037379,0.00100022,96704.0,96703.0,0.51742692]
[1736887037554,0.00100022,96704.0,96703.0,0.51242692]
[1736887037910,0.00200022,96704.0,96703.0,0.51842692]
[1736887038124,0.00200022,96704.0,96703.0,0.2052]
[1736887038125,0.00100022,96704.0,96703.0,0.2052]
[1736887038324,0.00100022,96704.0,96703.0,0.3082]
[1736887038523,0.00100022,96704.0,96703.0,0.3152]
[1736887038730,0.00200022,96704.0,96703.0,0.3152]
[1736887039367,0.00200022,96704.0,96703.0,0.2152]
[1736887039920,0.00200022,96704.0,96703.0,0.3062]
[1736887039921,0.00100022,96704.0,96703.0,0.3062]
[1736887040128,0.00100022,96704.0,96703.0,0.3082]
[1736887040278,0.00100022,96704.0,96703.0,0.2082]
[1736887040491,0.00200022,96704.0,96703.0,0.3142]
[1736887042195,0.00200022,96704.0,96703.0,0.2142]
[1736887043063,0.00200022,96704.0,96703.0,0.3142]
[1736887045095,0.00200022,96704.0,96703.0,0.2142]
[1736887045710,0.00200022,96704.0,96703.0,0.3142]
[1736887047026,0.00200022,96704.0,96703.0,0.2142]
[1736887047226,0.00200022,96704.0,96703.0,0.3142]
[1736887050340,2.2e-07,96704.0,96703.0,0.51842692]
[1736887051091,2.2e-07,96704.0,96703.0,0.59932692]
[1736887051774,0.00179382,96738.0,96723.0,0.456776]
[1736887051983,0.00179382,96738.0,96723.0,0.56100292]
[1736887053913,0.00179382,96738.0,96723.0,0.5862944]
[1736887054149,0.00179382,96738.0,96723.0,0.5952944]
[1736887055812,1.5e-07,96724.0,96723.0,0.6952944]
[1736887056026,1.5e-07,96724.0,96723.0,0.7761944]
[1736887056619,1.5e-07,96724.0,96723.0,0.78666785]
[1736887057002,1.5e-07,96724.0,96723.0,0.83246785]
[1736887063502,1.5e-07,96724.0,96723.0,0.86467487]
[1736887065122,9.7e-07,96738.0,96737.0,0.35]
[1736887065327,0.0004968,96738.0,96737.0,0.66097292]
[1736887066161,0.0004968,96738.0,96737.0,0.56097292]
[1736887066370,0.0004968,96738.0,96737.0,0.57397292]
[1736887067541,0.0004968,96738.0,96737.0,0.219746]
[1736887068008,0.0004968,96738.0,96737.0,0.47397292]
[1736887068125,8e-07,96738.0,96737.0,0.57397292]
[1736887069144,0.00179315,96738.0,96737.0,0.57397292]
[1736887070172,1.5e-07,96738.0,96737.0,0.67397292]
[1736887070379,1.5e-07,96738.0,96737.0,0.70617793]
[1736887070604,1.5e-07,96738.0,96737.0,0.78647793]
[1736887071539,1.5e-07,96738.0,96737.0,0.78247793]
[1736887071734,1.5e-07,96738.0,96737.0,0.78047793]
[1736887072118,1.5e-07,96738.0,96737.0,0.78947793]
[1736887080373,1.5e-07,96738.0,96737.0,0.83877793]
[1736887081191,3.5e-07,96771.0,96770.0,0.356675]
[1736887081382,6.7e-07,96784.0,96783.0,0.25]
[1736887081581,0.00014944,96784.0,96783.0,0.35422692]
[1736887081760,4.4e-07,96784.0,96783.0,0.35422692]
[1736887081959,4.4e-07,96784.0,96783.0,0.45422692]
[1736887082163,0.09223556,96806.0,96783.0,0.45422692]
[1736887082508,0.09223556,96806.0,96799.0,0.206613]
[1736887082509,5.8e-07,96801.0,96799.0,0.206613]
[1736887082754,5.8e-07,96801.0,96800.0,0.45422692]
[1736887084034,5.8e-07,96801.0,96800.0,0.009]
[1736887084454,5.8e-07,96801.0,96799.0,0.206613]
[1736887084660,5.8e-07,96801.0,96800.0,0.10422692]
[1736887085062,5.8e-07,96801.0,96800.0,0.10822692]
[1736887085615,5.8e-07,96801.0,96800.0,0.11722692]
[1736887086246,5.8e-07,96801.0,96800.0,0.11322692]
[1736887086452,5.8e-07,96801.0,96800.0,0.10422692]
[1736887086768,5.8e-07,96801.0,96800.0,0.009]
[1736887087379,5.8e-07,96801.0,96800.0,0.013]
[1736887087816,5.8e-07,96801.0,96800.0,0.009]
[1736887087978,5.8e-07,96801.0,96800.0,0.011]
[1736887088641,5.8e-07,96801.0,96800.0,0.002]
[1736887089142,5.8e-07,96801.0,96800.0,0.008]
[1736887090762,5.8e-07,96801.0,96800.0,0.26222692]
[1736887091207,5.8e-07,96801.0,96800.0,0.47256452]
[1736887091645,5.8e-07,96801.0,96800.0,0.1683376]
[1736887091830,5.8e-07,96801.0,96800.0,0.2623376]
[1736887092212,5.8e-07,96801.0,96800.0,0.2713376]
[1736887092409,5.8e-07,96801.0,96800.0,0.1623376]
[1736887092622,5.8e-07,96801.0,96800.0,0.152]
[1736887092814,5.8e-07,96801.0,96800.0,0.159]
[1736887093140,5.8e-07,96801.0,96800.0,0.164]
[1736887093567,5.8e-07,96801.0,96800.0,0.155]
[1736887093810,5.8e-07,96801.0,96800.0,0.156]
[1736887094014,5.8e-07,96801.0,96800.0,0.158]
[1736887096497,0.03104064,96801.0,96800.0,0.008]
[1736887097957,0.02300058,96801.0,96800.0,0.008]
[1736887098119,0.00800361,96801.0,96800.0,0.008]
[1736887098492,0.00800361,96801.0,96800.0,0.002]
[1736887098493,5.8e-07,96801.0,96800.0,0.002]
[1736887099234,5.8e-07,96801.0,96800.0,0.003]
[1736887103558,0.10849085,96801.0,96800.0,0.003]
[1736887104457,0.10849085,96801.0,96800.0,0.00479046]
[1736887104699,0.10849085,96801.0,96800.0,0.00279046]
[1736887104924,0.80640499,96801.0,96800.0,0.00279046]
[1736887105126,0.95640499,96801.0,96800.0,0.00279046]
[1736887105719,0.0775,96798.0,96767.0,0.206681]
[1736887105895,0.1,96799.0,96772.0,0.00014877]
[1736887105896,0.1233619,96780.0,96772.0,0.00014877]
[1736887106036,0.21706311,96779.0,96772.0,0.00014877]
[1736887106397,0.023,96775.0,96772.0,0.00014877]
[1736887106575,0.023,96776.0,96772.0,0.00014877]
[1736887106784,0.023,96773.0,96772.0,0.00014877]
[1736887107149,0.03087178,96773.0,96772.0,0.00014877]
[1736887107761,0.17435185,96773.0,96772.0,0.00014877]
[1736887107961,0.45981257,96773.0,96772.0,0.00014877]
[1736887108170,0.45852085,96773.0,96772.0,0.00014877]
[1736887108370,0.93832085,96773.0,96772.0,0.00014877]
[1736887109645,0.93832085,96773.0,96741.0,0.27720988]
[1736887109646,0.206728,96746.0,96741.0,0.27720988]
[1736887109839,0.023,96744.0,96741.0,0.27720988]
[1736887110223,0.023,96742.0,96741.0,0.27720988]
[1736887110660,0.03063282,96742.0,96741.0,0.27720988]
[1736887111330,0.03063282,96742.0,96737.0,0.0008532]
[1736887111331,0.206742,96739.0,96737.0,0.0008532]
[1736887111536,0.23941608,96738.0,96737.0,0.0008532]
[1736887111705,0.24620468,96738.0,96737.0,0.0008532]
[1736887112469,0.21280779,96738.0,96737.0,0.0008532]
[1736887112670,0.21280779,96738.0,96737.0,0.0018532]
[1736887112671,0.21410011,96738.0,96737.0,0.0018532]
[1736887112874,0.21410008,96738.0,96737.0,0.0018532]
[1736887113078,0.21410008,96738.0,96737.0,0.0028532]
[1736887113725,0.21410008,96738.0,96737.0,0.0018532]
[1736887113905,0.27890869,96738.0,96737.0,0.0018532]
[1736887114102,0.2776164,96738.0,96737.0,0.0018532]
[1736887114306,0.2776164,96738.0,96737.0,0.0008532]
[1736887115116,0.2766164,96738.0,96737.0,0.0008532]
[1736887116520,0.21280779,96738.0,96737.0,0.0008532]
[1736887116716,0.21410016,96738.0,96737.0,0.0008532]
[1736887119451,0.36410017,96738.0,96737.0,0.0008532]
[1736887119647,0.83890779,96738.0,96737.0,0.0008532]
[1736887119853,0.83890779,96738.0,96691.0,0.206843]
[1736887119854,0.023,96705.0,96696.0,0.206833]
[1736887120064,0.12722692,96705.0,96696.0,0.206833]
[1736887120304,0.03049548,96704.0,96696.0,0.206833]
[1736887120485,0.03049548,96704.0,96700.0,0.206824]
[1736887121227,0.03049548,96704.0,96703.0,0.00134933]
[1736887122713,0.03149548,96704.0,96703.0,0.00134933]
[1736887125194,0.024,96704.0,96703.0,0.00134933]
[1736887128206,0.05493724,96704.0,96703.0,0.00134933]
[1736887128452,0.45037286,96704.0,96703.0,0.00134933]
[1736887128676,0.44908016,96704.0,96703.0,0.00134933]
[1736887129320,0.44808016,96704.0,96703.0,0.00134933]
[1736887129524,0.45008016,96704.0,96703.0,0.00134933]
[1736887129751,0.45608016,96704.0,96703.0,0.00234933]
[1736887130167,0.45408016,96704.0,96703.0,0.00234933]
[1736887130540,0.70608016,96704.0,96703.0,0.00234933]
[1736887131117,0.70608016,96704.0,96703.0,0.00134933]
[1736887131118,0.70008016,96704.0,96703.0,0.00134933]
[1736887131530,0.70708016,96704.0,96703.0,0.00234933]
[1736887132041,1.03688016,96704.0,96703.0,0.00234933]
[1736887132470,1.01203801,96704.0,96703.0,0.00234933]
[1736887133527,0.91815801,96704.0,96703.0,0.00234933]
[1736887136012,0.91615801,96704.0,96703.0,0.00234933]
[1736887136402,0.91815801,96704.0,96703.0,0.00234933]
[1736887137032,0.91615801,96704.0,96703.0,0.00234933]
[1736887137246,0.91615801,96704.0,96703.0,0.00134933]
[1736887137247,1.01338493,96704.0,96703.0,0.00134933]
[1736887137690,1.01938493,96704.0,96703.0,0.00234933]
[1736887137871,1.01338493,96704.0,96703.0,0.00134933]
[1736887138241,1.01938493,96704.0,96703.0,0.00234933]
[1736887138520,1.01338493,96704.0,96703.0,0.00134933]
[1736887138793,1.01538493,96704.0,96703.0,0.00134933]
[1736887139243,1.01338493,96704.0,96703.0,0.00134933]
[1736887139473,0.91615801,96704.0,96703.0,0.00234933]
[1736887140390,0.91003801,96704.0,96703.0,0.00234933]
[1736887140620,0.91615801,96704.0,96703.0,0.00234933]
[1736887141068,0.91615801,96704.0,96689.0,0.0008537]
[1736887141069,0.356846,96690.0,96689.0,0.0008537]
[1736887141327,0.356846,96690.0,96689.0,0.00092035]
[1736887141328,0.88552542,96690.0,96689.0,0.00092035]
[1736887141570,1.22117427,96690.0,96689.0,6.665e-05]
[1736887142519,1.22917427,96690.0,96689.0,0.00106665]
[1736887142752,1.24981954,96690.0,96689.0,0.00106665]
[1736887142985,1.24181954,96690.0,96689.0,6.665e-05]
[1736887143239,1.24981954,96690.0,96689.0,0.00106665]
[1736887143699,1.26041297,96690.0,96689.0,0.00106665]
[1736887144654,1.06653297,96690.0,96689.0,0.00106665]
[1736887144861,0.98948047,96690.0,96689.0,0.00106665]
[1736887145067,0.92128047,96690.0,96689.0,0.00106665]
[1736887146238,0.94428047,96690.0,96689.0,0.00106665]
[1736887146893,0.9236352,96690.0,96689.0,0.00106665]
[1736887147039,0.6944352,96690.0,96689.0,0.00106665]
[1736887147249,0.79866212,96690.0,96689.0,0.00106665]
[1736887147869,0.79066212,96690.0,96689.0,6.665e-05]
[1736887148252,0.80066212,96690.0,96689.0,6.665e-05]
[1736887149322,1.05066212,96690.0,96689.0,6.665e-05]
[1736887149564,1.23076212,96690.0,96689.0,6.665e-05]
[1736887149982,1.27626212,96690.0,96689.0,6.665e-05]
[1736887150384,1.27626212,96690.0,96689.0,0.00185921]
[1736887150621,1.27711572,96690.0,96689.0,0.00185921]
[1736887150866,1.27011572,96690.0,96689.0,0.00185921]
[1736887150989,1.27611572,96690.0,96689.0,0.00285921]
[1736887151404,1.27611572,96690.0,96675.0,0.00179046]
[1736887151405,0.1,96676.0,96675.0,0.00179046]
[1736887151611,0.69986796,96676.0,96675.0,0.00179046]